bitfinex/quotes_ETHUSD_20220226
["timestamp","ask_amount","ask_price","bid_price","bid_amount"]
[1645859842713,4.54934,2765.1,2764.5,7.2346]
[1645859842950,0.00500258,2764.7,2764.5,7.2346]
[1645859843750,0.0041521,2765.0,2764.5,7.2346]
[1645859843953,0.1487521,2765.2,2764.5,7.2346]
[1645859844153,0.00500258,2764.7,2764.5,7.2346]
[1645859845055,0.1446,2764.6,2764.5,7.26648292]
[1645859845253,0.1446,2765.0,2764.5,7.26648292]
[1645859845454,0.00500258,2764.7,2764.5,7.26648292]
[1645859845654,0.1446,2764.6,2764.5,5.63519665]
[1645859846453,0.90484,2764.8,2764.5,5.63519665]
[1645859846454,0.14960261,2764.7,2764.5,5.63519665]
[1645859847306,0.00500261,2764.7,2764.5,5.63519665]
[1645859847501,0.1446,2765.0,2764.5,5.63519665]
[1645859847702,0.00500258,2764.7,2764.5,5.63519665]
[1645859848709,0.0200073,2765.2,2764.5,5.63519665]
[1645859848710,0.00421915,2765.1,2764.5,7.42365713]
[1645859848909,1.28659997,2765.7,2764.5,7.42365713]
[1645859848910,0.00284522,2764.7,2764.5,7.42365713]
[1645859849916,0.90877915,2765.6,2764.5,7.42365713]
[1645859850113,0.00284522,2764.7,2764.5,7.42365713]
[1645859850311,0.03564598,2764.6,2764.5,6.51443509]
[1645859850745,0.03564598,2764.6,2764.5,5.24697461]
[1645859853952,0.03564598,2764.6,2764.5,8.74697461]
[1645859854197,0.03564598,2764.6,2764.5,5.60657461]
[1645859858870,0.03564598,2764.6,2764.5,9.10657461]
[1645859860672,0.03564598,2764.6,2764.5,9.30068235]
[1645859861473,0.00500465,2764.7,2764.5,26.75668235]
[1645859861693,4.65e-06,2764.7,2764.6,26.3156]
[1645859861894,0.00421915,2766.0,2764.6,27.1366]
[1645859862094,0.00421915,2766.0,2764.9,0.3596]
[1645859862293,0.00421915,2766.0,2765.1,0.3596]
[1645859862492,0.00421915,2766.0,2765.2,0.8806]
[1645859862895,0.00421915,2766.0,2765.2,1.1806]
[1645859863101,0.00421915,2766.0,2765.2,0.821]
[1645859863299,0.00284171,2765.7,2765.4,1.04661229]
[1645859863500,0.00284171,2765.7,2765.5,0.521]
[1645859863700,0.00284171,2765.7,2765.6,0.521]
[1645859863898,0.00284171,2765.7,2764.9,7.2589]
[1645859863899,0.00284171,2765.7,2765.4,0.521]
[1645859864100,0.00284171,2765.7,2765.2,0.521]
[1645859864400,0.00421915,2766.0,2765.2,0.521]
[1645859864600,0.00421915,2766.0,2764.9,0.25]
[1645859864601,0.00500726,2765.7,2764.9,0.25]
[1645859864799,0.1446,2765.6,2764.9,0.25]
[1645859865000,0.1446,2765.6,2764.5,8.22597461]
[1645859865200,0.00500726,2765.7,2764.6,0.521]
[1645859865201,0.00421915,2765.5,2764.6,0.521]
[1645859865445,0.00500726,2765.7,2764.6,0.521]
[1645859865643,0.00421915,2765.8,2764.6,0.521]
[1645859865839,0.00283831,2765.2,2764.6,0.521]
[1645859866042,0.00283831,2765.2,2764.7,0.3596]
[1645859866240,0.00283831,2765.2,2764.8,0.521]
[1645859866443,0.00283831,2765.2,2765.0,0.3596]
[1645859866641,0.00421915,2766.0,2765.1,0.521]
[1645859866843,0.00421915,2766.0,2765.2,3.5]
[1645859867041,0.01135155,2765.6,2765.3,0.521]
[1645859867241,0.40242267,2765.2,2765.1,4.1596]
[1645859867442,0.40242267,2765.2,2765.1,1.1806]
[1645859867641,0.40242267,2765.2,2765.1,10.6222]
[1645859868447,0.40242267,2765.2,2765.1,11.69597126]
[1645859869047,0.40242267,2765.2,2765.1,11.90263734]
[1645859869491,0.40242267,2765.2,2765.1,15.40263734]
[1645859869695,0.40242267,2765.2,2765.1,15.54723734]
[1645859869893,0.40242267,2765.2,2765.1,12.04723734]
[1645859870297,0.40242267,2765.2,2765.1,15.54723734]
[1645859870498,0.40242267,2765.2,2765.1,23.06323734]
[1645859871300,0.40242267,2765.2,2765.1,26.56323734]
[1645859871496,0.40242267,2765.2,2765.1,26.35657126]
[1645859872097,0.00500636,2765.3,2765.2,18.2996]
[1645859872298,0.00500636,2765.3,2765.2,25.4812]
[1645859872498,0.00500636,2765.3,2765.2,26.3366]
[1645859872698,0.00421915,2766.0,2765.2,26.3366]
[1645859872972,0.01136515,2765.8,2765.4,0.3596]
[1645859873165,0.01136515,2765.8,2765.5,0.521]
[1645859873765,0.01136515,2765.8,2765.6,0.3596]
[1645859873964,0.5,2766.1,2765.7,0.8806]
[1645859874168,0.00421915,2766.0,2765.8,0.8806]
[1645859874364,0.5,2766.1,2765.9,0.521]
[1645859874563,0.5,2766.1,2766.0,0.521]
[1645859874963,0.5,2766.1,2766.0,1.72219017]
[1645859877393,0.00500905,2766.2,2766.0,1.72219017]
[1645859877598,0.00421915,2767.1,2766.2,0.3596]
[1645859877801,0.00421915,2767.2,2766.6,6.8756]
[1645859877998,0.00421915,2767.4,2766.7,0.8806]
[1645859878197,0.14861915,2767.8,2766.7,0.521]
[1645859878398,0.00421915,2767.8,2766.8,6.71010774]
[1645859878600,8.10352964,2768.7,2767.2,7.0]
[1645859878803,8.74342981,2768.6,2768.0,1.42478242]
[1645859879000,1.29342981,2768.5,2768.1,0.521]
[1645859879202,1.29342981,2768.5,2768.2,0.521]
[1645859879399,1.29342981,2768.5,2768.3,0.521]
[1645859879603,1.29342981,2768.5,2768.4,0.521]
[1645859880100,1.29342981,2768.5,2768.0,0.521]
[1645859880300,9.41536097,2769.1,2768.0,0.521]
[1645859880565,1.95238223,2769.0,2767.3,3.75]
[1645859880757,1.29342981,2768.9,2767.5,3.5]
[1645859880953,0.01297874,2769.1,2767.7,5.3596]
[1645859880954,1.29342981,2768.8,2767.7,5.3596]
[1645859881154,1.29342981,2768.7,2768.1,1.1276873]
[1645859881458,1.27088478,2768.6,2768.2,0.521]
[1645859881657,0.01297874,2769.1,2768.3,0.521]
[1645859881856,0.3596,2768.9,2767.6,5.8307]
[1645859882155,1.27093841,2768.8,2767.8,0.521]
[1645859882356,0.1444,2768.7,2767.8,0.521]
[1645859882756,0.00500732,2768.4,2767.8,0.521]
[1645859883457,1.27104352,2768.3,2767.8,0.521]
[1645859883858,3.2645,2768.7,2767.8,0.521]
[1645859883859,0.00500744,2768.2,2767.8,0.521]
[1645859884694,4.2645,2768.7,2767.8,0.521]
[1645859884895,1.26860104,2768.6,2767.8,0.521]
[1645859885095,0.00500751,2768.1,2767.8,0.521]
[1645859885498,0.00500751,2768.1,2767.8,0.821]
[1645859885896,0.36379874,2768.9,2767.8,0.821]
[1645859886097,0.00419874,2768.9,2767.8,0.821]
[1645859886297,0.00500755,2768.1,2767.8,0.821]
[1645859886700,0.00500755,2768.1,2767.8,0.9654]
[1645859887098,0.1444,2769.0,2767.8,0.821]
[1645859887299,0.25911164,2767.7,2767.6,0.1444]
[1645859887699,0.25911164,2767.7,2767.6,0.3106351]
[1645859887950,0.25911164,2767.7,2767.6,0.1444]
[1645859888153,0.25911164,2767.7,2767.6,0.521]
[1645859888355,0.25911164,2767.7,2767.6,1.72164438]
[1645859888652,0.25911164,2767.7,2767.6,0.6654]
[1645859888851,0.25911164,2767.7,2767.6,0.521]
[1645859889254,0.25911164,2767.7,2767.6,0.821]
[1645859890055,0.25911164,2767.7,2767.6,1.93840955]
[1645859890453,0.25911164,2767.7,2767.6,0.821]
[1645859890853,0.20911164,2767.7,2767.6,0.821]
[1645859891355,0.02002816,2768.2,2767.7,7.54559038]
[1645859891701,0.02002816,2768.2,2767.8,16.91175219]
[1645859891904,0.00419874,2769.4,2767.9,0.1444]
[1645859892100,0.00419874,2769.4,2768.4,1.25259488]
[1645859892302,0.00419874,2769.4,2768.5,0.521]
[1645859892503,1.38555343,2769.3,2768.3,0.521]
[1645859892803,0.00419874,2769.2,2768.2,0.521]
[1645859893006,0.1444,2769.1,2768.1,0.521]
[1645859893505,0.00419874,2769.0,2768.1,0.521]
[1645859894105,0.00419874,2769.0,2768.1,0.821]
[1645859894306,0.00419874,2769.0,2768.1,0.521]
[1645859894510,0.00419874,2769.0,2768.1,0.821]
[1645859894709,0.00500708,2768.7,2768.1,0.821]
[1645859894908,0.00500708,2768.7,2768.2,1.21340827]
[1645859895109,0.00500708,2768.7,2768.2,1.73440827]
[1645859895557,0.02422406,2769.1,2768.2,1.73440827]
[1645859895558,0.00419874,2769.1,2768.2,1.73440827]
[1645859895959,0.00500716,2768.6,2768.2,1.73440827]
[1645859896358,0.00500716,2768.6,2768.2,1.87880827]
[1645859896760,0.00419874,2769.0,2768.2,1.73440827]
[1645859896962,0.0050072,2768.5,2768.2,1.73440827]
[1645859897963,0.50819874,2769.4,2768.2,1.73440827]
[1645859898261,0.00500724,2768.5,2768.2,0.521]
[1645859899062,0.00500724,2768.5,2768.3,0.03138802]
[1645859899303,0.00419874,2769.0,2768.3,0.03138802]
[1645859899506,0.00500724,2768.5,2768.3,0.03138802]
[1645859900106,0.00500724,2768.5,2768.3,0.55238802]
[1645859900404,0.00419874,2769.2,2768.4,1.17468655]
[1645859900606,0.0050072,2768.5,2768.4,1.17468655]
[1645859901705,0.00419874,2769.3,2768.4,1.17468655]
[1645859901907,0.00500716,2768.6,2768.4,1.17468655]
[1645859902506,0.00500716,2768.6,2768.3,0.85238802]
[1645859902706,0.00500716,2768.6,2768.3,0.55238802]
[1645859902959,0.00419874,2769.3,2768.3,0.55238802]
[1645859903153,0.00500716,2768.6,2768.3,0.55238802]
[1645859903955,0.00419874,2769.3,2768.3,0.55238802]
[1645859904357,0.00500716,2768.6,2768.3,0.55238802]
[1645859904556,0.00500716,2768.6,2768.3,0.521]
[1645859904757,0.00500716,2768.6,2768.3,0.6654]
[1645859904962,0.00500716,2768.6,2768.3,0.521]
[1645859905158,0.00419874,2769.3,2768.3,0.521]
[1645859905557,0.00500716,2768.6,2768.3,0.521]
[1645859906157,0.00500716,2768.6,2768.3,1.95939107]
[1645859906358,0.00419874,2769.3,2768.3,1.95939107]
[1645859906709,0.00500716,2768.6,2768.3,1.95939107]
[1645859907109,0.00500716,2768.6,2768.3,0.521]
[1645859907515,0.93582766,2768.1,2767.8,6.7569]
[1645859907712,0.93582766,2768.1,2767.9,0.521]
[1645859907914,0.93582766,2768.1,2767.8,0.521]
[1645859908716,0.93582766,2768.1,2767.4,0.1444]
[1645859908918,0.93582766,2768.1,2767.4,3.5]
[1645859909116,0.93865061,2768.1,2767.4,3.5]
[1645859909314,0.93865061,2768.1,2767.0,0.25]
[1645859909517,1.31922215,2767.6,2766.8,1.1605]
[1645859909716,0.3596,2767.8,2766.6,0.521]
[1645859909917,0.00419874,2767.5,2766.6,4.021]
[1645859910118,0.00419874,2767.7,2766.6,4.24051319]
[1645859910316,0.00419874,2767.8,2766.6,4.321]
[1645859910545,0.00419874,2767.8,2766.6,0.821]
[1645859910946,0.00419874,2767.8,2766.7,0.1444]
[1645859911147,0.00419874,2767.8,2766.8,0.521]
[1645859911346,3.50419874,2767.8,2766.8,0.521]
[1645859911546,4.00819874,2767.8,2766.6,0.3]
[1645859911746,5.00819874,2767.8,2766.6,0.3]
[1645859912044,1.14859874,2767.8,2766.6,0.3]
[1645859912244,1.14859874,2767.8,2766.7,0.521]
[1645859912245,4.00819874,2767.8,2766.7,0.521]
[1645859912648,5.00819874,2767.8,2766.7,0.521]
[1645859912843,5.00819874,2767.8,2766.7,0.52601264]
[1645859913052,1.22107753,2767.7,2766.7,0.00501264]
[1645859913250,3.64859874,2767.6,2766.7,0.00501264]
[1645859913652,1.12722512,2767.1,2766.4,0.25]
[1645859913849,1.12722512,2767.1,2766.3,6.1756]
[1645859913850,1.12722512,2767.1,2766.7,0.00501258]
[1645859914504,3.5,2767.0,2766.7,0.00501258]
[1645859914703,1.12722512,2767.1,2766.7,0.00501258]
[1645859914903,1.12722512,2767.1,2766.1,0.521]
[1645859914904,1.12722512,2767.1,2766.8,0.03803751]
[1645859915104,0.00419874,2767.0,2766.8,0.03803751]
[1645859915308,1.14859874,2767.3,2766.8,0.03803751]
[1645859915507,1.1444,2767.3,2766.8,0.03803751]
[1645859915706,0.1444,2767.3,2766.8,0.03803751]
[1645859917973,1.1367,2767.4,2766.8,0.03803751]
[1645859919160,3.5,2767.3,2766.8,0.03803751]
[1645859919360,1.1367,2767.4,2766.8,0.03803751]
[1645859920161,1.26711542,2767.3,2766.7,0.00467222]
[1645859920360,0.03011474,2767.3,2766.7,0.00467222]
[1645859920960,3.53011474,2767.3,2766.4,0.821]
[1645859921163,3.53011474,2767.3,2766.7,0.00467213]
[1645859921362,0.03011474,2767.3,2766.7,0.00467213]
[1645859922198,0.03011474,2767.3,2766.4,0.821]
[1645859922399,0.03011474,2767.3,2766.7,0.00469486]
[1645859923210,3.53011474,2767.3,2766.7,0.00469486]
[1645859923406,0.1444,2767.2,2766.0,0.4444]
[1645859923607,1.3855571,2767.2,2766.7,0.00469486]
[1645859923806,1.23695836,2767.1,2766.7,0.00469486]
[1645859924510,1.59655836,2767.1,2766.0,0.1444]
[1645859924708,4.73695836,2767.0,2766.1,0.25843156]
[1645859924907,3.5,2767.0,2766.7,0.00469477]
[1645859925108,1.0,2767.0,2766.7,0.00469477]
[1645859925310,4.6444,2767.2,2766.7,0.00469477]
[1645859925554,1.23609314,2767.1,2766.7,0.00469477]
[1645859925754,1.59569314,2767.1,2766.0,0.1444]
[1645859925953,3.5,2767.0,2766.7,0.00470387]
[1645859926152,1.0944,2767.2,2766.7,0.00470387]
[1645859926455,4.73602472,2767.1,2766.7,0.00470387]
[1645859926751,1.23602472,2767.0,2766.7,0.00470387]
[1645859926951,1.59562472,2767.0,2765.8,1.8927241]
[1645859927152,3.5,2766.9,2766.7,0.00470383]
[1645859927451,4.1758,2767.1,2766.7,0.00470383]
[1645859927655,0.00309803,2766.5,2765.8,1.8927241]
[1645859927953,0.00309803,2766.5,2765.9,0.25837658]
[1645859929191,0.00309803,2766.5,2765.9,0.77937658]
[1645859929394,0.00309803,2766.5,2766.0,0.25837658]
[1645859932097,0.00309803,2766.5,2766.1,0.00470371]
[1645859932947,0.00309803,2766.5,2766.2,0.25987961]
[1645859933149,0.00309803,2766.5,2766.2,0.00477589]
[1645859934250,0.00309803,2766.5,2765.9,0.821]
[1645859934449,0.00309803,2766.5,2766.2,0.00477585]
[1645859934651,0.03319355,2766.5,2766.2,0.00477585]
[1645859935449,0.03319355,2766.5,2765.9,0.821]
[1645859935650,0.03319355,2766.5,2766.2,0.00477585]
[1645859936449,0.03319355,2766.5,2765.9,0.821]
[1645859936699,0.03319355,2766.5,2766.0,0.2596728]
[1645859936898,0.03319355,2766.5,2766.2,0.00469564]
[1645859937699,0.03319355,2766.5,2765.9,0.821]
[1645859937900,0.03319355,2766.5,2766.2,0.00469564]
[1645859938911,0.03319355,2766.5,2765.9,0.821]
[1645859939107,0.03319355,2766.5,2766.2,0.00469564]
[1645859940108,0.03319355,2766.5,2765.9,0.521]
[1645859940308,0.03319355,2766.5,2766.2,0.00470368]
[1645859941448,0.03319355,2766.5,2765.7,0.05]
[1645859941649,0.03319355,2766.5,2766.2,0.00470368]
[1645859942650,0.03319355,2766.5,2765.9,1.421565]
[1645859942852,0.03319355,2766.5,2766.2,0.00470368]
[1645859943853,0.03319355,2766.5,2765.9,2.242565]
[1645859944055,0.03319355,2766.5,2766.2,0.00470287]
[1645859944301,0.00309803,2766.5,2766.2,0.00470287]
[1645859944906,0.00309803,2766.5,2765.9,0.821]
[1645859945105,0.00309803,2766.5,2766.0,0.26361897]
[1645859945308,0.00309803,2766.5,2766.2,0.00470287]
[1645859945706,0.00309803,2766.5,2766.3,0.26375164]
[1645859946308,0.00309803,2766.5,2766.3,0.00470283]
[1645859947411,0.00309803,2766.5,2765.9,0.821]
[1645859947611,0.00309803,2766.5,2766.3,0.00470291]
[1645859947811,0.00309803,2766.5,2766.4,0.26403274]
[1645859948849,0.00309803,2766.5,2765.9,0.821]
[1645859948850,0.00309803,2766.5,2766.3,0.00470287]
[1645859949052,0.04029027,2766.5,2766.3,0.00470287]
[1645859949752,1.2333872,2766.4,2765.7,0.05]
[1645859949950,1.2333872,2766.4,2765.8,0.26465079]
[1645859950249,1.2333872,2766.4,2766.3,0.00470291]
[1645859950449,1.2333872,2766.4,2766.3,0.003747]
[1645859951050,1.2333872,2766.4,2765.9,0.26466016]
[1645859951252,1.2333872,2766.4,2765.4,1.3661]
[1645859951450,3.5,2766.3,2765.5,0.26467057]
[1645859951699,1.23597042,2766.2,2765.5,0.26467057]
[1645859952304,1.23597042,2766.2,2765.6,0.26467057]
[1645859952603,1.23597042,2766.2,2765.7,0.26467057]
[1645859952806,1.23597042,2766.2,2765.8,0.26467057]
[1645859953007,4.68489027,2766.5,2765.9,0.26467057]
[1645859953208,1.23611781,2766.4,2766.0,0.26467057]
[1645859953403,1.23611781,2766.4,2766.1,0.26467057]
[1645859953605,3.5,2766.3,2765.5,0.3]
[1645859953806,1.23611781,2766.2,2765.6,0.26513851]
[1645859954011,0.04029027,2766.5,2765.7,0.78613851]
[1645859954309,0.04029027,2766.5,2765.8,0.78613851]
[1645859954310,1.27495799,2766.4,2765.8,0.78613851]
[1645859954513,0.03762093,2766.4,2765.9,0.26513851]
[1645859954711,0.03762093,2766.4,2766.1,1.15750346]
[1645859954910,0.03762093,2766.4,2766.2,0.26513851]
[1645859955959,0.03762093,2766.4,2766.2,0.27015128]
[1645859956160,0.03762093,2766.4,2766.3,0.26513851]
[1645859956966,0.03762093,2766.4,2766.3,1.39276532]
[1645859957168,0.00309803,2766.5,2766.3,2.27336532]
[1645859957365,0.00309803,2766.5,2766.4,0.76913851]
[1645859957565,0.00309803,2766.5,2766.4,1.47253574]
[1645859957765,0.00309803,2766.5,2766.4,11.21073574]
[1645859959217,9.803e-05,2766.5,2766.4,23.88837326]
[1645859959421,9.803e-05,2766.5,2766.4,26.06506344]
[1645859959623,9.803e-05,2766.5,2766.4,38.92088908]
[1645859959826,9.803e-05,2766.5,2766.4,37.55383532]
[1645859960224,9.803e-05,2766.5,2766.4,38.92089706]
[1645859960622,9.803e-05,2766.5,2766.4,39.06547406]
[1645859960823,9.803e-05,2766.5,2766.4,42.56547406]
[1645859961022,9.803e-05,2766.5,2766.4,42.44229406]
[1645859961426,9.803e-05,2766.5,2766.4,42.29771706]
[1645859961624,9.803e-05,2766.5,2766.4,40.93065532]
[1645859962226,0.00501084,2767.3,2766.5,7.3596]
[1645859962431,0.00501084,2767.3,2767.2,19.49845037]
[1645859962630,0.00501084,2767.3,2767.2,20.51821144]
[1645859962827,0.00501084,2767.3,2767.2,35.05431144]
[1645859963052,0.9400264,2768.1,2767.5,0.3596]
[1645859963257,0.93582766,2768.1,2767.7,0.3596]
[1645859963557,0.02004273,2768.1,2768.0,0.3596]
[1645859963754,0.00419874,2768.9,2768.2,0.3596]
[1645859963954,0.00419874,2769.2,2768.3,0.78613851]
[1645859964156,1.2148328,2769.1,2768.3,0.521]
[1645859964353,1.2148328,2769.0,2768.3,0.821]
[1645859964554,1.2148328,2768.9,2768.3,0.821]
[1645859964857,1.2148328,2768.8,2768.3,0.821]
[1645859965057,1.2148328,2768.7,2768.3,0.821]
[1645859965255,1.2148328,2768.6,2768.3,0.821]
[1645859965456,1.14859874,2769.2,2768.3,0.821]
[1645859965755,1.21481521,2769.1,2768.3,0.821]
[1645859966154,1.21901395,2769.1,2768.3,0.821]
[1645859966355,1.21481521,2769.0,2768.3,0.821]
[1645859967008,0.00501037,2768.8,2768.3,0.821]
[1645859967206,1.21481521,2768.7,2768.3,0.821]
[1645859967610,0.00501037,2768.8,2768.3,0.821]
[1645859967809,0.00419874,2769.1,2768.3,0.821]
[1645859968007,1.21175917,2769.0,2768.3,0.821]
[1645859968207,0.00501053,2768.6,2768.3,0.821]
[1645859968610,0.00501053,2768.6,2768.3,1.38680284]
[1645859968807,0.00501053,2768.6,2768.4,0.18255368]
[1645859969008,0.50419874,2769.3,2768.5,1.33347957]
[1645859969207,1.2118892,2769.2,2768.4,0.821]
[1645859969411,0.00501057,2768.6,2768.5,0.02168739]
[1645859969807,0.00501057,2768.6,2768.5,0.32168739]
[1645859970212,0.00419874,2769.2,2768.5,12.14228739]
[1645859970454,0.5,2769.3,2768.6,0.46964495]
[1645859970455,0.00501049,2768.7,2768.6,0.46964495]
[1645859970656,0.0033453,2768.7,2768.6,12.29024495]
[1645859970861,0.0033453,2768.7,2768.6,23.02274495]
[1645859971059,0.0033453,2768.7,2768.6,29.53874495]
[1645859971261,0.0033453,2768.7,2768.6,31.76458734]
[1645859971462,0.00419874,2769.5,2768.9,11.2996]
[1645859971664,0.00419874,2769.5,2769.1,0.3596]
[1645859971861,0.5,2769.6,2769.1,0.55224813]
[1645859972062,1.1437,2770.6,2769.1,0.55224813]
[1645859972063,0.00419874,2770.3,2769.2,12.11953017]
[1645859972260,1.3154,2770.9,2769.2,12.11953017]
[1645859972261,1.12519874,2770.9,2769.6,0.3596]
[1645859972461,1.19466078,2770.8,2769.9,1.16233311]
[1645859972664,0.3596,2771.1,2770.0,0.521]
[1645859972861,1.1907755,2771.0,2770.1,0.521]
[1645859973061,1.1907755,2771.0,2770.2,0.521]
[1645859973262,1.1907755,2770.9,2770.3,0.521]
[1645859973461,1.45465997,2771.5,2770.3,0.521]
[1645859973462,1.1907755,2770.8,2770.3,0.521]
[1645859973663,3.03705705,2771.5,2769.6,0.3]
[1645859973664,0.1443,2770.7,2770.0,0.521]
[1645859973861,1.1907755,2770.7,2769.6,0.521]
[1645859974062,1.1907755,2770.6,2769.6,0.821]
[1645859974310,1.1907755,2770.5,2769.6,0.821]
[1645859974515,1.1907755,2770.4,2769.6,0.821]
[1645859974709,1.1907755,2770.4,2769.6,0.3]
[1645859974924,1.0472,2770.7,2769.6,0.3]
[1645859975118,1.19005514,2770.6,2769.5,0.3]
[1645859975318,0.00500933,2770.1,2769.3,1.371]
[1645859975519,0.00500933,2770.1,2769.3,1.071]
[1645859975722,0.00500933,2770.1,2769.3,1.371]
[1645859976017,0.00500933,2770.1,2769.3,1.071]
[1645859976217,0.1444,2770.5,2769.3,1.071]
[1645859976417,0.504,2770.6,2769.3,1.071]
[1645859976618,0.00500957,2769.8,2769.3,1.071]
[1645859976916,0.00500957,2769.8,2769.3,0.821]
[1645859977518,0.504,2770.6,2769.3,0.821]
[1645859977719,0.00500969,2769.7,2769.3,0.821]
[1645859978756,0.00417729,2770.5,2769.3,0.821]
[1645859978957,0.00417729,2770.5,2769.3,4.321]
[1645859979156,0.00500973,2769.6,2769.3,4.321]
[1645859979357,0.00500973,2769.6,2769.5,0.02138405]
[1645859979557,0.00500973,2769.6,2769.5,0.54238405]
[1645859979759,0.00500973,2769.6,2769.5,0.84238405]
[1645859979958,1.10506577,2770.5,2769.5,0.84238405]
[1645859980160,0.00500969,2769.7,2769.5,0.54238405]
[1645859980570,0.00500969,2769.7,2769.5,0.02138405]
[1645859981157,0.14857729,2770.4,2769.5,0.02138405]
[1645859982812,5.0,2770.3,2769.5,0.02138405]
[1645859983010,0.1444,2770.3,2769.5,0.02138405]
[1645859983212,1.1444,2770.3,2769.5,0.02138405]
[1645859983415,0.1444,2770.3,2769.5,0.02138405]
[1645859983712,0.00500867,2770.0,2769.5,0.02138405]
[1645859984314,0.1444,2769.9,2769.5,0.02138405]
[1645859984512,0.1444,2769.9,2768.8,6.8368]
[1645859984712,0.1444,2769.9,2768.8,7.1368]
[1645859984713,0.00417729,2769.8,2768.8,7.1368]
[1645859984912,0.00918612,2769.8,2768.8,7.1368]
[1645859985959,0.00417729,2769.8,2768.8,7.1368]
[1645859986259,0.00500915,2769.4,2768.8,7.1368]
[1645859987056,0.00417729,2769.8,2768.8,7.1368]
[1645859987558,0.00500931,2769.2,2768.8,7.1368]
[1645859988358,0.00417729,2769.8,2768.8,7.1368]
[1645859988560,0.00500939,2769.1,2768.8,7.1368]
[1645859988957,0.00500939,2769.1,2769.0,0.02155254]
[1645859989705,0.00417729,2769.8,2769.0,0.02155254]
[1645859989905,0.00500935,2769.2,2769.0,0.02155254]
[1645859990705,3.5,2770.0,2769.0,0.02155254]
[1645859990905,0.00417729,2769.9,2769.0,0.02155254]
[1645859991110,1.0,2770.2,2769.0,0.02155254]
[1645859991111,0.00500931,2769.2,2769.0,0.02155254]
[1645859991309,0.00500931,2769.2,2769.0,0.54255254]
[1645859991310,0.00302346,2769.2,2769.0,0.54255254]
[1645859991908,0.00417729,2769.9,2769.0,0.84255254]
[1645859992312,0.00417729,2770.1,2769.0,0.84255254]
[1645859993585,0.00417729,2770.2,2769.0,0.84255254]
[1645859995886,0.00500572,2769.7,2769.0,0.84255254]
[1645859996712,0.00417729,2770.2,2769.0,0.84255254]
[1645859996914,0.00500591,2769.5,2769.0,0.84255254]
[1645859997914,0.00417729,2770.2,2769.0,0.84255254]
[1645859998117,0.00500919,2769.4,2769.0,0.84255254]
[1645859998316,0.00500919,2769.4,2769.1,9.7312]
[1645859999118,0.00417729,2770.2,2769.2,0.0190979]
[1645859999318,0.00500919,2769.4,2769.2,0.0190979]
[1645859999920,0.00500919,2769.4,2769.2,0.5400979]
[1645860000318,0.00417729,2770.0,2769.2,0.8400979]
[1645860000555,0.00500915,2769.4,2769.2,0.8400979]
[1645860001360,0.00500915,2769.4,2769.2,0.5400979]
[1645860001563,3.50417729,2770.1,2769.2,0.0190979]
[1645860001564,4.50417729,2770.1,2769.2,0.0190979]
[1645860001758,0.00500915,2769.4,2769.2,0.0190979]
[1645860002759,0.14857729,2770.2,2769.2,0.0190979]
[1645860002959,1.19615371,2770.1,2769.2,0.0190979]
[1645860003159,0.00500915,2769.4,2769.2,0.0190979]
[1645860004709,3.60500915,2769.4,2769.1,9.7312]
[1645860005210,3.6,2769.4,2769.1,9.7312]
[1645860005409,3.60500919,2769.4,2769.1,9.7312]
[1645860005811,3.60500919,2769.4,2769.2,0.29968751]
[1645860006510,3.60500915,2769.4,2769.2,0.29968751]
[1645860007520,3.6,2769.4,2769.2,0.29968751]
[1645860007959,3.60500915,2769.4,2769.2,0.29968751]
[1645860008658,3.6,2769.4,2769.2,0.29968751]
[1645860009062,3.60500915,2769.4,2769.2,0.82068751]
[1645860009263,3.65538167,2769.4,2769.3,0.29968751]
[1645860009862,3.65037252,2769.4,2769.3,0.29968751]
[1645860011364,2.20397922,2769.4,2769.3,0.29968751]
[1645860012111,2.20397922,2769.4,2769.3,4.32068751]
[1645860012319,8.7955,2770.4,2769.3,4.32068751]
[1645860012320,0.65895242,2771.0,2769.5,0.3596]
[1645860012519,1.78886151,2771.4,2769.9,11.516]
[1645860012520,1.20217131,2770.9,2769.9,11.516]
[1645860012712,8.10895242,2771.5,2770.2,1.04203913]
[1645860012913,1.20412161,2771.4,2770.3,1.50312664]
[1645860013113,1.20412161,2771.4,2770.4,0.29968751]
[1645860013311,1.20412161,2771.4,2770.5,0.521]
[1645860013514,1.20412161,2771.4,2770.8,1.41354435]
[1645860013711,1.20412161,2771.4,2770.9,4.68028751]
[1645860013915,0.1443,2772.2,2771.0,0.29968751]
[1645860014111,0.1443,2772.2,2771.1,0.521]
[1645860014112,1.19706162,2772.1,2771.1,0.521]
[1645860014413,1.19706162,2772.0,2771.1,0.821]
[1645860014610,0.65895242,2772.2,2771.1,0.821]
[1645860014611,1.19706162,2771.9,2771.2,0.30356005]
[1645860014810,1.19706162,2771.8,2771.3,0.521]
[1645860015011,1.19984563,2771.7,2771.2,0.821]
[1645860015212,0.00278401,2771.7,2770.6,8.03318969]
[1645860015488,1.19706162,2771.6,2770.6,7.5413]
[1645860015685,0.80603643,2771.7,2770.7,0.30366496]
[1645860015889,1.19706162,2771.6,2770.7,0.30366496]
[1645860016189,1.19706162,2771.5,2770.7,0.30366496]
[1645860016488,0.1443,2771.9,2770.7,0.82466496]
[1645860016489,0.00500771,2771.2,2770.7,0.82466496]
[1645860016687,1.22292959,2771.1,2770.7,0.521]
[1645860017288,1.22292959,2771.0,2770.7,0.521]
[1645860017489,0.00500787,2771.0,2770.7,0.471]
[1645860018392,0.65895242,2771.8,2770.7,0.471]
[1645860018393,0.1443,2771.7,2770.7,0.471]
[1645860018691,0.00500791,2771.0,2770.7,0.471]
[1645860019087,3.55500791,2771.1,2770.7,0.471]
[1645860019911,3.55500791,2771.1,2770.9,0.01730884]
[1645860020106,3.55500791,2771.1,2770.9,0.53830884]
[1645860020506,3.55500791,2771.1,2770.9,0.83830884]
[1645860020711,3.55500791,2771.1,2771.0,0.27587374]
[1645860020908,3.55500791,2771.1,2771.0,0.79687374]
[1645860021107,3.55500791,2771.1,2771.0,0.521]
[1645860021311,3.55500791,2771.1,2771.0,0.79683179]
[1645860021706,3.55500791,2771.1,2771.0,10.52303179]
[1645860022512,3.55500791,2771.1,2771.0,14.18763908]
[1645860022712,3.55500791,2771.1,2771.0,10.68763908]
[1645860022964,3.55500791,2771.1,2771.0,10.83193908]
[1645860023570,0.00500775,2771.2,2771.1,7.3596]